Cogmind - Beta 14 @@@ ROGUE MODE // 2024.10.30 @ 23:03:21 Player: Valkyorl Result: Destroyed by D-53 Grenadier with Mini Grenade Launcher Performance ------------- Evolutions (0) 0 Regions Visited (2) 400 Robots Destroyed (24) 120 Value Destroyed (466) 466 Prototype IDs (0) 0 Alien Tech Used (0) 0 Bonus (0) 0 TOTAL SCORE: 986 Bonus ------- None Cogmind --------- Core Integrity 0/250 Matter 172/300 Energy 100/100 System Corruption 2% Temperature Cool (0) Movement Rolling (115) Ox1 Location -10/Mines Parts ------- > --- POWER (1) -------- (None) > --- PROPULSION (2) --- Compact Wheel > --- UTILITY (2) ------ Large Storage Unit Signal Interpreter > --- WEAPON (2) ------- (None) > --- INVENTORY (15) --- Light Ion Engine Light Nuclear Core Fission Core Flight Unit Flight Unit Flight Unit Flight Unit Huge Storage Unit Sensor Array Signal Interpreter Transport Network Coupler ECM Suite ECM Suite Light Armor Plating Peak State ------------ > --- POWER ------------ Light Nuclear Core > --- PROPULSION ------- Light Treads Light Treads > --- UTILITY ---------- Large Storage Unit Signal Interpreter > --- WEAPON ----------- Light Assault Rifle Light Assault Rifle > --- INVENTORY -------- Light Ion Engine Light Nuclear Core Compact Wheel Compact Wheel Medium Storage Unit Sensor Array ECM Suite ECM Suite Light Armor Plating Particle Gun Grenade Launcher Grenade Launcher [Rating: 10] Favorites ----------- Power Light Nuclear Core Engine Ion Engine Power Core Light Nuclear Core Propulsion Light Treads Treads Light Treads Leg Aluminum Leg Wheel Compact Wheel Utility Signal Interpreter Storage Large Storage Unit Processor Signal Interpreter Protection Light Armor Plating Weapon Light Assault Rifle Ballistic Gun Light Assault Rifle Launcher Grenade Launcher Build | -11 -10 -10 ------- Run | Yrd Mat Min Slots Evolved . | . . . Power . | . . . Propulsion . | . . . Utility . | . . . Weapon . | . . . Parts Attached 32 | 6 21 5 Power 4 | 1 3 . Engine 3 | 1 2 . Core 1 | . 1 . Reactor . | . . . Propulsion 9 | 2 5 2 Treads 5 | 2 3 . Leg 2 | . 2 . Wheel 2 | . . 2 Hover . | . . . Flight . | . . . Utility 8 | 1 7 . Device . | . . . Storage 5 | 1 4 . Processor 1 | . 1 . Hackware . | . . . Protection 2 | . 2 . Artifact . | . . . Weapon 11 | 2 6 3 Energy Gun . | . . . Energy Cannon . | . . . Ballistic Gun 9 | 2 6 1 Ballistic Cannon . | . . . Launcher 2 | . . 2 Special Weapon . | . . . Impact Weapon . | . . . Slashing Weapon . | . . . Piercing Weapon . | . . . Special Melee Weapon . | . . . Unidentified Prototypes . | . . . Parts Lost 11 | . 4 7 Power 1 | . . 1 Propulsion 4 | . 2 2 Utility . | . . . Weapon 6 | . 2 4 Highest Loss Streak 5 | . 2 5 To Critical Strikes . | . . . Average Slot Usage (%) 93 | . 95 77 Engine 4 | . 4 . Core 8 | . 8 5 Treads 16 | . 19 . Leg 8 | . 7 18 Storage 14 | . 14 14 Processor 11 | . 11 14 Ballistic Gun 25 | . 27 12 Launcher 1 | . . 7 Peak Build Rating 10 | 6 10 10 Average Rating 8 | 4 8 7 On Entrance 5 | . 6 10 Naked Turns . | . . . Heaviest Build 29 | 14 29 27 Greatest Support 40 | 40 40 32 Greatest Overweight (x) 8 | 3 8 2 Average Overweight (x) . | . . 1 Largest Inventory Capacity 25 | 8 25 15 Average Capacity 13 | 7 13 15 Most Carried 15 | 7 15 15 Average Carried 12 | 5 12 14 Final Capacity 15 | 8 15 15 Final Carried 15 | 6 15 14 Class Distribution -------------------- 73% | Mutant 26% | Scavenger-Mutant Dominant Class ---------------- Mutant | -10/Materials Mutant | -10/Mines Resources | -11 -10 -10 ----------- Run | Yrd Mat Min Matter Collected 805 | 160 564 81 Remotely . | . . . Salvage Created 727 | . 618 109 Parts 45 | . 35 10 Haulers Intercepted 2 | . 2 . Recyclers Shooed 1 | . 1 . Parts Field Recycled . | . . . Retrieved Matter . | . . . Parts Self-Destructed . | . . . Prevented . | . . . Kills | -11 -10 -10 ------- Run | Yrd Mat Min Combat Hostiles Destroyed 29 | . 9 20 Guns 12 | . 9 3 AOE 17 | . . 17 Classes Destroyed 9 | . 7 2 Worker 1 | . 1 . Builder 2 | . . 2 Hauler 2 | . 2 . Recycler 1 | . 1 . Mechanic 1 | . 1 . Watcher 3 | . 3 . Swarmer 6 | . 3 3 Grunt 8 | . 6 2 Assembled 15 | . . 15 Best Kill Streak 15 | . 5 15 Combat Bots Only 15 | . 4 15 Max Kills in Single Turn 4 | . 1 4 Gunslinging 1 | . . 1 Exploded 4 | . . 4 Melee . | . . . Uniques/NPCs Destroyed . | . . . Combat | -11 -10 -10 -------- Run | Yrd Mat Min Hostile Shots Fired 140 | . 89 51 Missed 44 | . 27 17 Damage Taken 1307 | . 685 622 Core 253 | . 148 105 Absorbed by Shields . | . . . Core Remaining (%) 100 | 100 . . Volleys Fired 95 | . 72 23 Largest 2 | . 2 2 Hottest 50 | . 40 50 Shots Fired 174 | . 142 32 Gun 157 | . 142 15 Cannon . | . . . Launcher 17 | . . 17 Special . | . . . Kinetic 157 | . 142 15 Thermal . | . . . Explosive 17 | . . 17 Electromagnetic . | . . . Robot Hit Streak 19 | . 19 4 Robot Miss Streak 8 | . 8 2 Penetration Max . | . . . Secondary Targets 5 | . 4 1 Max Gunslinging Chain 1 | . 1 1 Shots Hit Robots 107 | . 89 18 Core Hits 76 | . 37 39 Critical Kills 1 | . 1 . Critical Parts Destroyed 1 | . 1 . Critical Strikes 2 | . 2 . Destroy 2 | . 2 . Melee Attacks . | . . . Impact . | . . . Slashing . | . . . Piercing . | . . . Sneak Attacks . | . . . Combat Hostiles . | . . . Follow-up Attacks . | . . . Damage Inflicted 2033 | . 921 1112 Guns 989 | . 921 68 Cannons . | . . . Explosions 1044 | . . 1044 Melee . | . . . Ramming . | . . . Kinetic 989 | . 921 68 Thermal . | . . . Explosive 1044 | . . 1044 Electromagnetic . | . . . Impact . | . . . Slashing . | . . . Piercing . | . . . Highest Corruption 2 | . 2 2 Average Corruption 2 | . 2 2 Corruption Purged . | . . . Corruption Blocked . | . . . Effects 12 | . 9 3 Message Errors 2 | . 1 1 Matter Fused 3 | . 2 1 Heat Flow Errors 1 | . 1 . Energy Discharges 2 | . 2 . Data Loss (minor) 1 | . . 1 Data Loss (major) 3 | . 3 . Overload Shots . | . . . Overflow Damage 72 | . . 72 Projectiles . | . . . Explosions 72 | . . 72 Melee . | . . . Knockbacks . | . . . Impact . | . . . Kinetic . | . . . Secondary . | . . . Self-Inflicted Damage 97 | . . 97 Shots 4 | . . 4 Rammed . | . . . Targets Rammed . | . . . Kicked . | . . . Crushed . | . . . Highest Temperature 210 | . 210 8 Average Temperature 19 | . 21 4 Received Heat Transfer 356 | . 312 44 Siege Activations . | . . . Robots Corrupted . | . . . Combat Hostiles . | . . . Parts Fried . | . . . Impact Corruptions . | . . . Robots Melted . | . . . Combat Hostiles . | . . . Parts Melted . | . . . Heat Transferred . | . . . Parts Sabotaged . | . . . Parts Stolen . | . . . Parts Stripped . | . . . Power Chain Reactions . | . . . Alert | -11 -10 -10 ------- Run | Yrd Mat Min Peak Influence 196 | . 196 152 Initial . | . . . Average 40 | . 39 68 Maximum Alert Level . | . . . Low Security (%) 100 | 100 100 100 Level 1 . | . . . Level 2 . | . . . Level 3 . | . . . Level 4 . | . . . Level 5 . | . . . High Security . | . . . Max Security . | . . . Squads Dispatched . | . . . Investigation . | . . . Extermination . | . . . Reinforcement . | . . . Assault . | . . . Garrison . | . . . Intercept . | . . . Searches Triggered . | . . . Construction Impeded . | . . . Haulers Reinforced . | . . . Active Scanning Responses . | . . . Cargo Convoy Interrupts . | . . . Stealth | -11 -10 -10 --------- Run | Yrd Mat Min Distress Signals 1 | . 1 . Communications Jammed . | . . . Distress Signals . | . . . Times Spotted 42 | . 15 27 Peak Tracking Total 20 | . 5 20 Tactical Retreats 1 | . . 1 Traps | -11 -10 -10 ------- Run | Yrd Mat Min Traps Triggered 6 | . 6 . Indirectly . | . . . Trap Hack Attempts . | . . . Triggered . | . . . Disarmed . | . . . Reprogrammed . | . . . Reused . | . . . Traps Extracted . | . . . Installed . | . . . Triggered . | . . . Machines | -11 -10 -10 ---------- Run | Yrd Mat Min Machines Disabled . | . . . Max in Single Turn . | . . . Machines Repaired . | . . . Machines Dismantled . | . . . Machines Sabotaged . | . . . Overloaded Fab Kills . | . . . Hacking | -11 -10 -10 --------- Run | Yrd Mat Min Machines Accessed 5 | . 5 . Terminals 5 | . 5 . Fabricators . | . . . Repair Stations . | . . . Recycling Units . | . . . Scanalyzers . | . . . Garrison Access . | . . . Total Hacks 11 | . 11 . Successful 6 | . 6 . Failed 5 | . 5 . Catastrophic . | . . . Database Lockouts . | . . . Manual . | . . . Terminals 11 | . 11 . Fabricators . | . . . Repair Stations . | . . . Recycling Units . | . . . Scanalyzers . | . . . Garrison Access . | . . . Terminal Hacks 6 | . 6 . Record 3 | . 3 . Robot Analysis 1 | . 1 . Level Access Points 1 | . 1 . Alert Level 1 | . 1 . Fabricator Hacks . | . . . Repair Station Hacks . | . . . Recycling Unit Hacks . | . . . Scanalyzer . | . . . Garrison Access Hacks . | . . . Unauthorized Hacks . | . . . Terminals . | . . . Fabricators . | . . . Repair Stations . | . . . Recycling Units . | . . . Scanalyzers . | . . . Garrison Access . | . . . Data Cores Recovered . | . . . Used . | . . . Hacking Detections 4 | . 4 . Full Trace Events 1 | . 1 . Feedback Events . | . . . Feedback Blocked . | . . . Robot Schematics Acquired . | . . . Robots Built . | . . . Authchips . | . . . Time . | . . . Total Robot Build Rating . | . . . Part Schematics Acquired . | . . . Parts Built . | . . . Authchips . | . . . Time . | . . . Total Part Build Rating . | . . . Parts Repaired . | . . . Time . | . . . Parts Recycled . | . . . Recycled Matter . | . . . Retrieved Matter . | . . . Retrieved Components . | . . . Parts Scanalyzed . | . . . Part Schematics Acquired . | . . . Parts Damaged . | . . . Bothacking | -11 -10 -10 ------------ Run | Yrd Mat Min Used RIF Installer . | . . . Robots Hacked . | . . . Non-combat . | . . . Combat . | . . . Robot Hacks Applied . | . . . Relay Couplers Released . | . . . Fabnet Peak Effective % . | . . . Robots Rewired . | . . . Allies Hacked . | . . . Hacks Repelled . | . . . Allies | -11 -10 -10 -------- Run | Yrd Mat Min Total Allies . | . . . Largest Group . | . . . Highest-Rated Group . | . . . Highest-Rated Ally . | . . . Total Orders . | . . . Ally Attacks . | . . . Total Damage . | . . . Kills . | . . . Allies Corrupted . | . . . Allies Melted . | . . . Intel | -11 -10 -10 ------- Run | Yrd Mat Min Robot Analysis Total 1 | . 1 . Derelict Logs Recovered 1 | . . 1 Drone Launches . | . . . Drone Recoveries . | . . . Exploration | -11 -10 -10 ------------- Run | Yrd Mat Min Turns Passed 1524 | 80 1244 200 Spaces Moved 691 | 47 575 69 Core 24 | 17 7 . Treads 440 | 30 410 . Legs 219 | . 158 61 Wheels 8 | . . 8 Hover . | . . . Flight . | . . . Fastest Speed 50 | 50 150 100 Average Speed 172 | 135 171 202 Slowest Speed 450 | 200 450 260 Overloaded Moves . | . . . Propulsion Burnouts . | . . . Robots Hopped . | . . . Cave-ins Triggered . | . . . Exploration Rate (%) 32 | 4 74 19 Regions Visited 2 Branch Regions 1 Pre-discovered Areas 1 | . . 1 Known Exits Taken 1 | . 1 . Unknown Exits Taken 1 | 1 . . Scrap Searched . | . . . Spaces Dug . | . . . Terrain Destroyed 76 | . . 76 Melee . | . . . Projectile . | . . . AOE 76 | . . 76 Terrain Rammed . | . . . Walls Destroyed . | . . . Machines Disabled . | . . . Actions | -11 -10 -10 --------- Run | Yrd Mat Min Total 871 | 63 706 102 Wait . | . . . Move 689 | 46 574 69 Hop . | . . . Pick Up 40 | 11 26 3 Fast Attach 14 | 1 13 . Attach 13 | 5 5 3 Detach 1 | . 1 . Swap 5 | . 3 2 Drop 14 | . 12 2 Fire 95 | . 72 23 Melee . | . . . Ram . | . . . Kick . | . . . Crush . | . . . Escape Stasis . | . . . Rewire . | . . . Trap . | . . . Miscellaneous . | . . . Route ------- -11/Scrapyard -10/Materials (discovered 5 exits: *Mat x3 / *Min x2) -10/Mines History --------- Turn | Location | Event 13 | -11/Scrapyard | Discovered new exit (range 16) 81 | -11/Scrapyard | Entered Materials 264 | -10/Materials | Discovered new exit (range 11) 354 | -10/Materials | Build established: Mutant 518 | -10/Materials | Identified exit to Mines 718 | -10/Materials | Identified exit to Materials 921 | -10/Materials | Discovered exit to Mines (range 15) 953 | -10/Materials | Core integrity fell below 50% 1297 | -10/Materials | Build established: Scavenger-Mutant 1325 | -10/Materials | Entered Mines 1363 | -10/Mines | Learned location of Storage (-9) 1375 | -10/Mines | Met a Derelict bent on vengeance 1399 | -10/Mines | Assembled infested the area 1404 | -10/Mines | Assisted by a Guerilla fighting off Assembled 1427 | -10/Mines | Core integrity fell below 20% 1457 | -10/Mines | Lost 5 parts (1p1n3w) 1459 | -10/Mines | Destroyed 15 combat bots 1525 | -10/Mines | Destroyed by D-53 Grenadier with Mini Grenade Launcher Last Messages --------------- The unstable cave ceiling collapses. Acquired 31 matter. Acquired Com. Wheel. Dropped Aluminum Leg. Acquired Com. Wheel. K-01 Serf collects debris. System corrupted: Component data lost. K-01 Serf collects debris. U-05 Engineer builds a Wall. The unstable cave ceiling collapses. G-34 Mercenary destroyed. U-05 Engineer destroyed. G-47 Trooper destroyed. K-01 Serf collects debris. Destroyed Welding Torch. U-05 Engineer destroyed. Com. Wheel destroyed. The unstable cave ceiling collapses. K-01 Serf collects debris. Grenade Launcher destroyed. Map ----- +----------------------------------------------------+ | ?????????????????????????????????????????????? | | ?????????????????????????????????????????????? | | ?????????????????????????????????????????????? | | ?????????????????????????????????????????????? | | ?????????????????????????????????????????????? | | ?????????????????????????????????????????????? | | ?????????????????????????????????????????????? | | ?????????????????????????????????????????????? | | ?????????????????????????????????????????????? | | ??????????????????? ?????????????????????????? | | ??????????????????? ?????????????????????????? | | ??????????????????? ?????????????????????????? | | ??????????????????? #????????????????????????? | | ??????????????????# #????????????????????????? | | ??????????????????# #????????????????????????? | | ????????????##????# #????????????????????????? | | ???????????? ???# #????????????????????????? | | ???????????? ???# #????????????????????????? | | ????????????# ???# #????????????????????????? | | ????????????# ???# #????????????????????????? | | ????????????# ??## #####????????????????????? | | ????????????# #?# # ##????####???????????? | | ????????????# #?# ### ## ?????????? | | ?????????#### ### ????????? | | ?????????# ! ## ??????? | | ??????????#%! ! @ !* #????? | | ??????????##= d % " ????? | | ??????????## d ! ????? | | ??????????# k # #????? | | ??????????# #??????????? | | ??????????## ###??????????? | | ???????????# ## #####????????????? | | ???????????# # #???????????????? | | ???????????# ####### #???????????????? | | ???????????# ####?????# #???????????????? | | ???????????# #???????? ##???????????????? | | ???????????# #???????? #????????????????? | | ???????????# #???????## ##????????????????? | | ???????????# #????????# ##?????????????????? | | ???????????# #????????# #??????????????????? | | ???????????# #????????# ??????????????????? | | ????????#### #???????? ??????????????????? | | ????????# #???????? ??????????????????? | | ????????# #####????????####??????????????????? | | ????????# #??????????????????????????????????? | | ????????# #??????????????????????????????????? | | ????????# #??????????????????????????????????? | | ?????#### #####??????????????????????????????? | | ?????# #??????????????????????????????? | | ?????# =% #??????????????????????????????? | +----------------------------------------------------+ Best States ------------- Heat Dissipation 25 Energy Generation 14 Energy Capacity 250 Matter Stores 300 Matter Capacity 300 Sight Range 16 Terrain Scan Density 10 Armor Coverage 150 Evasion (%) 50 Recoil Reduction 2 Item Schematics ----------------- None Robot Schematics ------------------ None Fabricated ------------ Nothing Alien Tech Used ----------------- None Achievements -------------- Exterminator Hunted Let's See Who's Tougher Challenges ------------ None Game ------ Seed LightpackLatentRay Manual? 0 Play Time 00:19:38 Cumulative 6.7 hours Start 2024.09.15 @ 00:49:13 End 2024.10.30 @ 23:03:21 Sessions 3 Manual Loads 0 Difficulty Rogue Special Mode None Game No. 7 Rogue 7 Adventurer 0 Explorer 0 Win Type - Total 0 Types 0/0/0/0/0/0/0/0/0 Lore% 4 Gallery% 9 Achievement% 12 Wizard Run 0 Options --------- Layout 1 ASCII 0 Keyboard 0 Movement Mouse Keybinds 0 Fullscreen 2 Font 32/SmallcapsGlow Map View 50x35 Zoom Use 0% Tactical HUD 0 Map Filters NONE Filters NONE Steam 1 RUN: b5d97a23-a52c-4159-a6eb-b9f2e2007e36